[Event "January 2 Late 2024"]
[Site "https://www.chess.com"]
[Date "2024.01.02"]
[Round "8"]
[White "Mazzilli, Piero"]
[Black "Burke, Paul"]
[Result "1-0"]
[Board "148"]
[TimeControl "180+1"]
[WhiteFideId "807087"]
[BlackFideId "2605767"]
[WhiteElo "2336"]
[BlackElo "1946"]
[WhiteTeam "ITA"]
[BlackTeam "CAN"]
[WhiteClock "0:00:11"]
[BlackClock "0:00:00"]

1. e4 {[%clk 0:03:00]}  e5 {[%clk 0:02:46]} 2. Nc3 {[%clk 0:02:59]}  Nc6 {[%clk 0:02:46]} 3. Nf3 {[%clk 0:02:59]}  Be7 {[%clk 0:02:46]} 4. d3 {[%clk 0:02:59]}  d6 {[%clk 0:02:43]} 5. g3 {[%clk 0:03:00]}  Nf6 {[%clk 0:02:42]} 6. Bg2 {[%clk 0:02:59]}  O-O {[%clk 0:02:42]} 7. O-O {[%clk 0:02:59]}  h6 {[%clk 0:02:43]} 8. h3 {[%clk 0:02:59]}  Be6 {[%clk 0:02:42]} 9. Re1 {[%clk 0:02:59]}  Qd7 {[%clk 0:02:43]} 10. Kh2 {[%clk 0:02:57]}  Nd4 {[%clk 0:02:37]} 11. Nxd4 {[%clk 0:02:55]}  exd4 {[%clk 0:02:36]} 12. Ne2 {[%clk 0:02:55]}  c5 {[%clk 0:02:35]} 13. f4 {[%clk 0:02:55]}  Qc7 {[%clk 0:02:21]} 14. Ng1 {[%clk 0:02:46]}  d5 {[%clk 0:02:13]} 15. e5 {[%clk 0:02:45]}  Nd7 {[%clk 0:02:12]} 16. Nf3 {[%clk 0:02:19]}  Rae8 {[%clk 0:02:08]} 17. Qd2 {[%clk 0:01:50]}  Nb6 {[%clk 0:01:42]} 18. Qf2 {[%clk 0:01:14]}  Bd7 {[%clk 0:01:38]} 19. Kh1 {[%clk 0:01:06]}  Qc8 {[%clk 0:01:28]} 20. g4 {[%clk 0:01:05]}  h5 {[%clk 0:01:04]} 21. f5 {[%clk 0:01:02]}  Bxf5 {[%clk 0:01:00]} 22. gxf5 {[%clk 0:01:02]}  Qxf5 {[%clk 0:00:59]} 23. Qg3 {[%clk 0:00:59]}  Bd8 {[%clk 0:00:34]} 24. Qf4 {[%clk 0:00:59]}  Qg6 {[%clk 0:00:26]} 25. Bd2 {[%clk 0:00:57]}  Re6 {[%clk 0:00:22]} 26. Rg1 {[%clk 0:00:55]}  Qh7 {[%clk 0:00:21]} 27. Raf1 {[%clk 0:00:51]}  f6 {[%clk 0:00:21]} 28. Qg3 {[%clk 0:00:43]}  fxe5 {[%clk 0:00:18]} 29. Nxe5 {[%clk 0:00:42]}  Rxf1 {[%clk 0:00:17]} 30. Rxf1 {[%clk 0:00:41]}  Bc7 {[%clk 0:00:17]} 31. Ng6 {[%clk 0:00:15]}  Qxg6 {[%clk 0:00:09]} 32. Qxc7 {[%clk 0:00:15]}  Re2 {[%clk 0:00:08]} 33. Qd8+ {[%clk 0:00:09]}  Kh7 {[%clk 0:00:08]} 34. Qg5 {[%clk 0:00:10]}  Qxg5 {[%clk 0:00:07]} 35. Bxg5 {[%clk 0:00:11]}  Rxc2 {[%clk 0:00:06]} 36. Bd8 {[%clk 0:00:12]}  Rxb2 {[%clk 0:00:06]} 37. Bxb6 {[%clk 0:00:12]}  axb6 {[%clk 0:00:06]} 38. Bxd5 {[%clk 0:00:13]}  Rd2 {[%clk 0:00:06]} 39. Rg1 {[%clk 0:00:12]}  g6 {[%clk 0:00:05]} 40. Be4 {[%clk 0:00:12]}  Rxa2 {[%clk 0:00:03]} 41. Rxg6 {[%clk 0:00:12]}  Kh8 {[%clk 0:00:03]} 42. Rxb6 {[%clk 0:00:12]}  c4 {[%clk 0:00:02]} 43. dxc4 {[%clk 0:00:11]}  Ra1+ {[%clk 0:00:02]} 44. Kg2 {[%clk 0:00:11]}  Rd1 {[%clk 0:00:00]} 45. Kf3 {[%clk 0:00:11]} 1-0

[Event "January 2 Late 2024"]
[Site "https://www.chess.com"]
[Date "2024.01.02"]
[Round "8"]
[White "Dias, Joao Batista"]
[Black "Kotlyar, Kirill"]
[Result "1-0"]
[Board "149"]
[TimeControl "180+1"]
[WhiteFideId "2108240"]
[BlackFideId "24145599"]
[WhiteElo "2016"]
[BlackElo "2520"]
[WhiteTeam "BRA"]
[BlackTeam "RUS"]
[WhiteClock "0:01:17"]
[BlackClock "0:00:00"]

1. e4 {[%clk 0:03:00]}  e5 {[%clk 0:02:55]} 2. Nf3 {[%clk 0:03:00]}  Nc6 {[%clk 0:02:53]} 3. d4 {[%clk 0:03:00]}  exd4 {[%clk 0:02:53]} 4. Nxd4 {[%clk 0:03:00]}  Nf6 {[%clk 0:02:53]} 5. Nxc6 {[%clk 0:03:00]}  bxc6 {[%clk 0:02:54]} 6. Bd3 {[%clk 0:03:01]}  d5 {[%clk 0:02:54]} 7. exd5 {[%clk 0:03:01]}  cxd5 {[%clk 0:02:55]} 8. O-O {[%clk 0:03:01]}  Be7 {[%clk 0:02:55]} 9. h3 {[%clk 0:03:02]}  O-O {[%clk 0:02:56]} 10. b3 {[%clk 0:03:02]}  c6 {[%clk 0:02:56]} 11. Bb2 {[%clk 0:03:02]}  Re8 {[%clk 0:02:52]} 12. Nd2 {[%clk 0:03:03]}  Bd6 {[%clk 0:02:38]} 13. Re1 {[%clk 0:03:03]}  Be6 {[%clk 0:02:36]} 14. Qf3 {[%clk 0:03:02]}  h6 {[%clk 0:02:29]} 15. Bxf6 {[%clk 0:03:01]}  Qxf6 {[%clk 0:02:30]} 16. Qxf6 {[%clk 0:03:01]}  gxf6 {[%clk 0:02:31]} 17. Rad1 {[%clk 0:03:01]}  Bd7 {[%clk 0:02:25]} 18. c4 {[%clk 0:03:00]}  Rxe1+ {[%clk 0:02:18]} 19. Rxe1 {[%clk 0:03:00]}  Bb4 {[%clk 0:02:19]} 20. Rd1 {[%clk 0:02:55]}  Be6 {[%clk 0:01:48]} 21. cxd5 {[%clk 0:02:53]}  cxd5 {[%clk 0:01:44]} 22. Nf3 {[%clk 0:02:53]}  Rc8 {[%clk 0:01:43]} 23. Nd4 {[%clk 0:02:52]}  Bc5 {[%clk 0:01:38]} 24. Nf5 {[%clk 0:02:44]}  h5 {[%clk 0:01:16]} 25. Kf1 {[%clk 0:02:41]}  Bb4 {[%clk 0:01:05]} 26. Ke2 {[%clk 0:02:38]}  Bxf5 {[%clk 0:00:53]} 27. Bxf5 {[%clk 0:02:37]}  Re8+ {[%clk 0:00:54]} 28. Kd3 {[%clk 0:02:35]}  Bc5 {[%clk 0:00:46]} 29. Rc1 {[%clk 0:02:34]}  Bxf2 {[%clk 0:00:45]} 30. Rf1 {[%clk 0:02:28]}  Be3 {[%clk 0:00:37]} 31. Rf3 {[%clk 0:02:26]}  d4 {[%clk 0:00:36]} 32. Be4 {[%clk 0:02:20]}  Kg7 {[%clk 0:00:33]} 33. Bd5 {[%clk 0:02:20]}  Rc8 {[%clk 0:00:28]} 34. Bc4 {[%clk 0:02:20]}  Rc5 {[%clk 0:00:27]} 35. a4 {[%clk 0:02:08]}  h4 {[%clk 0:00:21]} 36. g3 {[%clk 0:02:04]}  Rh5 {[%clk 0:00:20]} 37. g4 {[%clk 0:02:04]}  Rg5 {[%clk 0:00:19]} 38. Ke4 {[%clk 0:02:02]}  Re5+ {[%clk 0:00:19]} 39. Kd3 {[%clk 0:02:02]}  Kg6 {[%clk 0:00:19]} 40. b4 {[%clk 0:01:55]}  Re7 {[%clk 0:00:17]} 41. Bd5 {[%clk 0:01:53]}  Rd7 {[%clk 0:00:16]} 42. Bc4 {[%clk 0:01:47]}  Rb7 {[%clk 0:00:16]} 43. b5 {[%clk 0:01:46]}  Rc7 {[%clk 0:00:16]} 44. a5 {[%clk 0:01:46]}  Rc5 {[%clk 0:00:13]} 45. Rf1 {[%clk 0:01:39]}  Rc8 {[%clk 0:00:09]} 46. Rf5 {[%clk 0:01:37]}  Rb8 {[%clk 0:00:09]} 47. Rd5 {[%clk 0:01:28]}  Bf2 {[%clk 0:00:06]} 48. Rd7 {[%clk 0:01:27]}  Be3 {[%clk 0:00:06]} 49. Rxa7 {[%clk 0:01:20]}  Kg5 {[%clk 0:00:06]} 50. Rxf7 {[%clk 0:01:18]}  Kf4 {[%clk 0:00:06]} 51. Rxf6+ {[%clk 0:01:18]}  Kg3 {[%clk 0:00:07]} 52. a6 {[%clk 0:01:18]}  Kxh3 {[%clk 0:00:00]} 53. a7 {[%clk 0:01:17]} 1-0

[Event "January 2 Late 2024"]
[Site "https://www.chess.com"]
[Date "2024.01.02"]
[Round "8"]
[White "Rangel, Daniel"]
[Black "Harish, Neeraj"]
[Result "1-0"]
[Board "150"]
[TimeControl "180+1"]
[WhiteFideId "2124475"]
[BlackFideId "30958130"]
[WhiteElo "2500"]
[BlackElo "2254"]
[WhiteTeam "BRA"]
[BlackTeam "USA"]
[WhiteClock "0:00:24"]
[BlackClock "0:00:01"]

1. d4 {[%clk 0:03:00]}  d5 {[%clk 0:02:55]} 2. c4 {[%clk 0:03:01]}  e6 {[%clk 0:02:55]} 3. Nc3 {[%clk 0:03:02]}  Nf6 {[%clk 0:02:55]} 4. cxd5 {[%clk 0:03:01]}  exd5 {[%clk 0:02:55]} 5. Bg5 {[%clk 0:03:01]}  Be7 {[%clk 0:02:53]} 6. e3 {[%clk 0:03:01]}  c6 {[%clk 0:02:50]} 7. Bd3 {[%clk 0:03:02]}  h6 {[%clk 0:02:49]} 8. Bh4 {[%clk 0:03:01]}  O-O {[%clk 0:02:50]} 9. Nge2 {[%clk 0:03:00]}  Ne8 {[%clk 0:02:44]} 10. Bxe7 {[%clk 0:02:57]}  Qxe7 {[%clk 0:02:45]} 11. Qc2 {[%clk 0:02:56]}  Nd6 {[%clk 0:02:44]} 12. h3 {[%clk 0:02:53]}  Re8 {[%clk 0:02:39]} 13. O-O {[%clk 0:02:51]}  Nd7 {[%clk 0:02:39]} 14. Ng3 {[%clk 0:02:50]}  Nf6 {[%clk 0:02:35]} 15. Rae1 {[%clk 0:02:48]}  Nde4 {[%clk 0:02:16]} 16. Bxe4 {[%clk 0:02:47]}  Nxe4 {[%clk 0:02:13]} 17. Ncxe4 {[%clk 0:02:45]}  dxe4 {[%clk 0:02:14]} 18. f3 {[%clk 0:02:43]}  exf3 {[%clk 0:01:57]} 19. Rxf3 {[%clk 0:02:44]}  Be6 {[%clk 0:01:55]} 20. Nf5 {[%clk 0:02:43]}  Bxf5 {[%clk 0:01:54]} 21. Qxf5 {[%clk 0:02:44]}  Qe6 {[%clk 0:01:52]} 22. Qxe6 {[%clk 0:02:40]}  Rxe6 {[%clk 0:01:53]} 23. Kf2 {[%clk 0:02:38]}  Rae8 {[%clk 0:01:47]} 24. Rc1 {[%clk 0:02:38]}  g6 {[%clk 0:01:31]} 25. b4 {[%clk 0:02:38]}  a6 {[%clk 0:01:29]} 26. a4 {[%clk 0:02:36]}  f5 {[%clk 0:01:25]} 27. Rc5 {[%clk 0:02:35]}  Kg7 {[%clk 0:01:09]} 28. b5 {[%clk 0:02:35]}  axb5 {[%clk 0:01:05]} 29. axb5 {[%clk 0:02:35]}  cxb5 {[%clk 0:01:05]} 30. Rxb5 {[%clk 0:02:36]}  b6 {[%clk 0:01:06]} 31. Rb3 {[%clk 0:02:29]}  Ra8 {[%clk 0:01:03]} 32. Kg3 {[%clk 0:02:27]}  Kf6 {[%clk 0:01:00]} 33. Rf2 {[%clk 0:02:27]}  Rd8 {[%clk 0:00:51]} 34. Rfb2 {[%clk 0:02:25]}  Rdd6 {[%clk 0:00:49]} 35. Kf3 {[%clk 0:02:24]}  g5 {[%clk 0:00:45]} 36. g3 {[%clk 0:02:23]}  h5 {[%clk 0:00:43]} 37. h4 {[%clk 0:02:21]}  g4+ {[%clk 0:00:42]} 38. Kf2 {[%clk 0:02:19]}  Ke7 {[%clk 0:00:26]} 39. Rb5 {[%clk 0:02:19]}  Rf6 {[%clk 0:00:25]} 40. Re5+ {[%clk 0:02:16]}  Rde6 {[%clk 0:00:21]} 41. Rbb5 {[%clk 0:02:01]}  Rxe5 {[%clk 0:00:19]} 42. Rxe5+ {[%clk 0:02:02]}  Kd6 {[%clk 0:00:19]} 43. Ke2 {[%clk 0:01:59]}  Kc6 {[%clk 0:00:15]} 44. Kd3 {[%clk 0:01:59]}  Kd6 {[%clk 0:00:15]} 45. Kc4 {[%clk 0:01:57]}  Kc6 {[%clk 0:00:14]} 46. Kb4 {[%clk 0:01:54]}  Rf8 {[%clk 0:00:12]} 47. Re6+ {[%clk 0:01:49]}  Kd5 {[%clk 0:00:12]} 48. Re5+ {[%clk 0:01:50]}  Kc6 {[%clk 0:00:11]} 49. Kc4 {[%clk 0:01:46]}  Rf6 {[%clk 0:00:11]} 50. d5+ {[%clk 0:01:39]}  Kd6 {[%clk 0:00:11]} 51. Re8 {[%clk 0:01:40]}  Kc7 {[%clk 0:00:11]} 52. Kd4 {[%clk 0:01:37]}  Kd6 {[%clk 0:00:10]} 53. Rc8 {[%clk 0:01:36]}  Rf7 {[%clk 0:00:09]} 54. Rc6+ {[%clk 0:01:35]}  Kd7 {[%clk 0:00:09]} 55. Rxb6 {[%clk 0:01:35]}  Rf8 {[%clk 0:00:09]} 56. Rh6 {[%clk 0:01:35]}  Re8 {[%clk 0:00:09]} 57. Rh7+ {[%clk 0:01:33]}  Kd6 {[%clk 0:00:09]} 58. Rh6+ {[%clk 0:01:33]}  Kd7 {[%clk 0:00:09]} 59. Rxh5 {[%clk 0:01:29]}  Re4+ {[%clk 0:00:09]} 60. Kd3 {[%clk 0:01:30]}  Re5 {[%clk 0:00:09]} 61. Rh7+ {[%clk 0:01:09]}  Kd6 {[%clk 0:00:09]} 62. Ra7 {[%clk 0:01:09]}  Rxd5+ {[%clk 0:00:09]} 63. Ke2 {[%clk 0:01:08]}  Re5 {[%clk 0:00:09]} 64. Ra6+ {[%clk 0:01:04]}  Kd7 {[%clk 0:00:08]} 65. h5 {[%clk 0:00:58]}  Re8 {[%clk 0:00:06]} 66. Kd3 {[%clk 0:00:56]}  Ke7 {[%clk 0:00:05]} 67. h6 {[%clk 0:00:54]}  Kf7 {[%clk 0:00:05]} 68. h7 {[%clk 0:00:53]}  Kg7 {[%clk 0:00:05]} 69. Ra7+ {[%clk 0:00:52]}  Kh8 {[%clk 0:00:04]} 70. Rd7 {[%clk 0:00:52]}  Re4 {[%clk 0:00:03]} 71. Rd5 {[%clk 0:00:51]}  Kxh7 {[%clk 0:00:03]} 72. Rxf5 {[%clk 0:00:51]}  Ra4 {[%clk 0:00:02]} 73. Rf4 {[%clk 0:00:50]}  Ra3+ {[%clk 0:00:02]} 74. Ke4 {[%clk 0:00:50]}  Ra4+ {[%clk 0:00:02]} 75. Kf5 {[%clk 0:00:50]}  Ra5+ {[%clk 0:00:02]} 76. Kxg4 {[%clk 0:00:50]}  Kg6 {[%clk 0:00:03]} 77. e4 {[%clk 0:00:50]}  Re5 {[%clk 0:00:03]} 78. Kf3 {[%clk 0:00:50]}  Kg5 {[%clk 0:00:02]} 79. Rf8 {[%clk 0:00:49]}  Ra5 {[%clk 0:00:02]} 80. Rg8+ {[%clk 0:00:47]}  Kf6 {[%clk 0:00:01]} 81. Kf4 {[%clk 0:00:47]}  Ra3 {[%clk 0:00:02]} 82. Rb8 {[%clk 0:00:46]}  Ra5 {[%clk 0:00:03]} 83. Rb6+ {[%clk 0:00:46]}  Ke7 {[%clk 0:00:03]} 84. g4 {[%clk 0:00:46]}  Kf7 {[%clk 0:00:04]} 85. g5 {[%clk 0:00:46]}  Ra1 {[%clk 0:00:05]} 86. g6+ {[%clk 0:00:42]}  Kg7 {[%clk 0:00:05]} 87. Kf5 {[%clk 0:00:40]}  Rf1+ {[%clk 0:00:05]} 88. Ke5 {[%clk 0:00:38]}  Re1 {[%clk 0:00:05]} 89. Rc6 {[%clk 0:00:37]}  Re2 {[%clk 0:00:04]} 90. Rd6 {[%clk 0:00:34]}  Re1 {[%clk 0:00:04]} 91. Kd5 {[%clk 0:00:34]}  Rd1+ {[%clk 0:00:04]} 92. Ke6 {[%clk 0:00:30]}  Re1 {[%clk 0:00:04]} 93. e5 {[%clk 0:00:29]}  Kxg6 {[%clk 0:00:04]} 94. Rd2 {[%clk 0:00:28]}  Ra1 {[%clk 0:00:03]} 95. Rg2+ {[%clk 0:00:27]}  Kh7 {[%clk 0:00:02]} 96. Kf7 {[%clk 0:00:27]}  Ra7+ {[%clk 0:00:02]} 97. Kf6 {[%clk 0:00:26]}  Ra6+ {[%clk 0:00:02]} 98. e6 {[%clk 0:00:26]}  Ra8 {[%clk 0:00:01]} 99. Kf7 {[%clk 0:00:25]}  Ra7+ {[%clk 0:00:01]} 100. e7 {[%clk 0:00:25]}  Rb7 {[%clk 0:00:01]} 101. Rh2# {[%clk 0:00:24]} 1-0

[Event "January 2 Late 2024"]
[Site "https://www.chess.com"]
[Date "2024.01.02"]
[Round "8"]
[White "Andersson, Bjorn 1971"]
[Black "Korpics, Zsolt"]
[Result "1-0"]
[Board "151"]
[TimeControl "180+1"]
[WhiteFideId "1702114"]
[BlackFideId "705241"]
[WhiteElo "2236"]
[BlackElo "2487"]
[WhiteTeam "SWE"]
[BlackTeam "HUN"]
[WhiteClock "0:00:45"]
[BlackClock "0:00:00"]

1. e4 {[%clk 0:03:00]}  c5 {[%clk 0:03:00]} 2. Nf3 {[%clk 0:03:00]}  e6 {[%clk 0:03:01]} 3. d4 {[%clk 0:03:01]}  cxd4 {[%clk 0:03:02]} 4. Nxd4 {[%clk 0:03:01]}  Nc6 {[%clk 0:03:02]} 5. Nc3 {[%clk 0:03:01]}  Qc7 {[%clk 0:03:03]} 6. Ndb5 {[%clk 0:03:01]}  Qb8 {[%clk 0:03:03]} 7. g3 {[%clk 0:03:01]}  a6 {[%clk 0:02:58]} 8. Nd4 {[%clk 0:03:00]}  Nf6 {[%clk 0:02:50]} 9. Bf4 {[%clk 0:02:58]}  e5 {[%clk 0:02:48]} 10. Nxc6 {[%clk 0:02:55]}  bxc6 {[%clk 0:02:48]} 11. Bc1 {[%clk 0:02:53]}  Bb4 {[%clk 0:02:44]} 12. Bg2 {[%clk 0:02:35]}  d5 {[%clk 0:02:32]} 13. O-O {[%clk 0:02:30]}  d4 {[%clk 0:02:24]} 14. Ne2 {[%clk 0:02:29]}  O-O {[%clk 0:02:19]} 15. Bg5 {[%clk 0:02:23]}  Be7 {[%clk 0:02:17]} 16. b3 {[%clk 0:02:20]}  Qa7 {[%clk 0:02:06]} 17. Nc1 {[%clk 0:02:16]}  Bg4 {[%clk 0:02:00]} 18. Qe1 {[%clk 0:02:13]}  Rab8 {[%clk 0:01:55]} 19. Nd3 {[%clk 0:02:11]}  h6 {[%clk 0:01:42]} 20. Bd2 {[%clk 0:02:07]}  Nd7 {[%clk 0:01:31]} 21. f4 {[%clk 0:02:03]}  f6 {[%clk 0:01:31]} 22. f5 {[%clk 0:01:55]}  Nc5 {[%clk 0:01:29]} 23. Nf2 {[%clk 0:01:45]}  Bh5 {[%clk 0:01:28]} 24. g4 {[%clk 0:01:45]}  Bf7 {[%clk 0:01:27]} 25. h4 {[%clk 0:01:44]}  Nd7 {[%clk 0:01:10]} 26. g5 {[%clk 0:01:41]}  fxg5 {[%clk 0:01:06]} 27. hxg5 {[%clk 0:01:41]}  hxg5 {[%clk 0:00:56]} 28. Nd3 {[%clk 0:01:40]}  Bf6 {[%clk 0:00:49]} 29. Qg3 {[%clk 0:01:39]}  Nc5 {[%clk 0:00:49]} 30. Bxg5 {[%clk 0:01:37]}  Bxg5 {[%clk 0:00:49]} 31. Qxg5 {[%clk 0:01:37]}  Nxd3 {[%clk 0:00:49]} 32. cxd3 {[%clk 0:01:36]}  Be8 {[%clk 0:00:10]} 33. Rf3 {[%clk 0:01:29]}  Qf7 {[%clk 0:00:09]} 34. Rg3 {[%clk 0:01:28]}  Qf6 {[%clk 0:00:09]} 35. Qc1 {[%clk 0:01:25]}  Rc8 {[%clk 0:00:07]} 36. Qc5 {[%clk 0:01:21]}  Bf7 {[%clk 0:00:07]} 37. Rc1 {[%clk 0:01:14]}  Rfd8 {[%clk 0:00:07]} 38. Bf3 {[%clk 0:01:08]}  Qh4 {[%clk 0:00:07]} 39. Kf2 {[%clk 0:01:07]}  Qh2+ {[%clk 0:00:07]} 40. Rg2 {[%clk 0:01:06]}  Qh4+ {[%clk 0:00:07]} 41. Ke2 {[%clk 0:01:05]}  Qh6 {[%clk 0:00:07]} 42. Rf1 {[%clk 0:00:56]}  Qe3+ {[%clk 0:00:07]} 43. Kd1 {[%clk 0:00:56]}  Qxd3+ {[%clk 0:00:07]} 44. Kc1 {[%clk 0:00:55]}  Qxf1+ {[%clk 0:00:05]} 45. Kb2 {[%clk 0:00:52]}  Qxf3 {[%clk 0:00:05]} 46. Rc2 {[%clk 0:00:51]}  d3 {[%clk 0:00:05]} 47. Rd2 {[%clk 0:00:51]}  Qxe4 {[%clk 0:00:04]} 48. Qe7 {[%clk 0:00:49]}  Qd4+ {[%clk 0:00:04]} 49. Kb1 {[%clk 0:00:46]}  Qc3 {[%clk 0:00:04]} 50. Qg5 {[%clk 0:00:45]}  Qd4 {[%clk 0:00:03]} 51. f6 {[%clk 0:00:45]}  g6 {[%clk 0:00:00]} 52. Qh6 {[%clk 0:00:45]} 1-0

[Event "January 2 Late 2024"]
[Site "https://www.chess.com"]
[Date "2024.01.02"]
[Round "8"]
[White "Gaal, Zsoka"]
[Black "HouseOfDurin"]
[Result "1/2-1/2"]
[Board "152"]
[TimeControl "180+1"]
[WhiteFideId "777765"]
[WhiteElo "2463"]
[BlackElo "2233"]
[WhiteTeam "HUN"]
[WhiteClock "0:00:06"]
[BlackClock "0:00:05"]

1. g3 {[%clk 0:03:00]}  c5 {[%clk 0:02:59]} 2. Bg2 {[%clk 0:02:59]}  Nc6 {[%clk 0:03:00]} 3. b3 {[%clk 0:02:58]}  g6 {[%clk 0:03:01]} 4. Bb2 {[%clk 0:02:59]}  Nf6 {[%clk 0:02:59]} 5. Nf3 {[%clk 0:02:58]}  Bg7 {[%clk 0:03:00]} 6. O-O {[%clk 0:02:59]}  O-O {[%clk 0:03:00]} 7. c4 {[%clk 0:02:59]}  d6 {[%clk 0:03:00]} 8. Nc3 {[%clk 0:03:00]}  e5 {[%clk 0:03:01]} 9. d3 {[%clk 0:03:00]}  h6 {[%clk 0:03:01]} 10. Ne1 {[%clk 0:02:57]}  Be6 {[%clk 0:03:01]} 11. Nc2 {[%clk 0:02:57]}  d5 {[%clk 0:03:01]} 12. cxd5 {[%clk 0:02:53]}  Nxd5 {[%clk 0:03:02]} 13. Nxd5 {[%clk 0:02:54]}  Bxd5 {[%clk 0:03:02]} 14. Bxd5 {[%clk 0:02:54]}  Qxd5 {[%clk 0:03:03]} 15. Ne3 {[%clk 0:02:55]}  Qe6 {[%clk 0:02:59]} 16. Rc1 {[%clk 0:02:54]}  b6 {[%clk 0:02:58]} 17. Nc4 {[%clk 0:02:48]}  Rad8 {[%clk 0:02:57]} 18. Qd2 {[%clk 0:02:47]}  f5 {[%clk 0:02:52]} 19. Qe3 {[%clk 0:02:42]}  Rfe8 {[%clk 0:02:49]} 20. Ba1 {[%clk 0:02:31]}  Nd4 {[%clk 0:02:48]} 21. Bxd4 {[%clk 0:02:28]}  exd4 {[%clk 0:02:47]} 22. Qxe6+ {[%clk 0:02:27]}  Rxe6 {[%clk 0:02:48]} 23. Rfe1 {[%clk 0:02:28]}  Rde8 {[%clk 0:02:48]} 24. Kf1 {[%clk 0:02:27]}  g5 {[%clk 0:02:26]} 25. a4 {[%clk 0:02:27]}  Be5 {[%clk 0:01:59]} 26. Rc2 {[%clk 0:02:19]}  Kg7 {[%clk 0:01:50]} 27. Ra1 {[%clk 0:02:17]}  Bc7 {[%clk 0:01:47]} 28. Na3 {[%clk 0:02:11]}  a5 {[%clk 0:01:39]} 29. Nc4 {[%clk 0:01:56]}  Kf6 {[%clk 0:01:38]} 30. f3 {[%clk 0:01:52]}  h5 {[%clk 0:01:37]} 31. Kf2 {[%clk 0:01:52]}  Rh8 {[%clk 0:01:25]} 32. h3 {[%clk 0:01:39]}  Ke7 {[%clk 0:01:08]} 33. Rg1 {[%clk 0:01:28]}  Kd7 {[%clk 0:01:04]} 34. Rg2 {[%clk 0:01:28]}  Kc6 {[%clk 0:01:03]} 35. Rc1 {[%clk 0:01:28]}  Rhe8 {[%clk 0:00:58]} 36. Kf1 {[%clk 0:01:25]}  g4 {[%clk 0:00:53]} 37. hxg4 {[%clk 0:01:07]}  fxg4 {[%clk 0:00:46]} 38. f4 {[%clk 0:01:03]}  h4 {[%clk 0:00:46]} 39. gxh4 {[%clk 0:00:54]}  Bxf4 {[%clk 0:00:46]} 40. Rc2 {[%clk 0:00:46]}  g3 {[%clk 0:00:44]} 41. Nd2 {[%clk 0:00:41]}  Bxd2 {[%clk 0:00:34]} 42. Rxd2 {[%clk 0:00:41]}  Re3 {[%clk 0:00:34]} 43. Rg1 {[%clk 0:00:30]}  Rf8+ {[%clk 0:00:29]} 44. Kg2 {[%clk 0:00:23]}  Rf2+ {[%clk 0:00:29]} 45. Kh3 {[%clk 0:00:23]}  Rh2+ {[%clk 0:00:29]} 46. Kg4 {[%clk 0:00:23]}  g2 {[%clk 0:00:19]} 47. h5 {[%clk 0:00:15]}  Kd6 {[%clk 0:00:19]} 48. Rc2 {[%clk 0:00:06]}  Ke5 {[%clk 0:00:16]} 49. Rcc1 {[%clk 0:00:03]}  Rxe2 {[%clk 0:00:11]} 50. Rce1 {[%clk 0:00:04]}  Rxe1 {[%clk 0:00:09]} 51. Rxe1+ {[%clk 0:00:05]}  Kf6 {[%clk 0:00:09]} 52. Rg1 {[%clk 0:00:04]}  Kg7 {[%clk 0:00:05]} 53. Kg3 {[%clk 0:00:02]}  Rh1 {[%clk 0:00:06]} 54. Rxg2 {[%clk 0:00:03]}  Rxh5 {[%clk 0:00:06]} 55. Kf4+ {[%clk 0:00:03]}  Kf6 {[%clk 0:00:06]} 56. Ke4 {[%clk 0:00:04]}  Ke7 {[%clk 0:00:05]} 57. Rg6 {[%clk 0:00:03]}  Rh4+ {[%clk 0:00:04]} 58. Kd5 {[%clk 0:00:03]}  Rh3 {[%clk 0:00:04]} 59. Kc4 {[%clk 0:00:03]}  Rh1 {[%clk 0:00:04]} 60. Rxb6 {[%clk 0:00:03]}  Rc1+ {[%clk 0:00:05]} 61. Kd5 {[%clk 0:00:04]}  Rc3 {[%clk 0:00:05]} 62. Rb5 {[%clk 0:00:03]}  Kd7 {[%clk 0:00:05]} 63. Rxa5 {[%clk 0:00:03]}  Rxb3 {[%clk 0:00:06]} 64. Kc4 {[%clk 0:00:02]}  Rc3+ {[%clk 0:00:05]} 65. Kd5 {[%clk 0:00:02]}  Rxd3 {[%clk 0:00:06]} 66. Rxc5 {[%clk 0:00:03]}  Ra3 {[%clk 0:00:05]} 67. Rc4 {[%clk 0:00:03]}  d3 {[%clk 0:00:05]} 68. Ke4 {[%clk 0:00:04]}  Kd6 {[%clk 0:00:04]} 69. Rd4+ {[%clk 0:00:04]}  Kc5 {[%clk 0:00:05]} 70. Rxd3 {[%clk 0:00:05]}  Rxd3 {[%clk 0:00:04]} 71. Kxd3 {[%clk 0:00:06]}  Kb4 {[%clk 0:00:05]} 72. Kd4 {[%clk 0:00:06]}  Kxa4 {[%clk 0:00:05]} 1/2-1/2

[Event "January 2 Late 2024"]
[Site "https://www.chess.com"]
[Date "2024.01.02"]
[Round "8"]
[White "Skibbe, Willi"]
[Black "Negron Lizarazo, Juan Sebastian"]
[Result "1-0"]
[Board "155"]
[TimeControl "180+1"]
[WhiteFideId "4682190"]
[BlackFideId "3936910"]
[WhiteElo "2384"]
[BlackElo "2183"]
[WhiteTeam "GER"]
[BlackTeam "COL"]
[WhiteClock "0:00:27"]
[BlackClock "0:00:16"]

1. e4 {[%clk 0:03:00]}  c5 {[%clk 0:02:58]} 2. c3 {[%clk 0:02:58]}  d5 {[%clk 0:02:56]} 3. exd5 {[%clk 0:02:57]}  Qxd5 {[%clk 0:02:57]} 4. Nf3 {[%clk 0:02:58]}  Bg4 {[%clk 0:02:56]} 5. Na3 {[%clk 0:02:51]}  Nf6 {[%clk 0:02:50]} 6. Bc4 {[%clk 0:02:44]}  Qd8 {[%clk 0:02:33]} 7. Bxf7+ {[%clk 0:02:12]}  Kxf7 {[%clk 0:02:21]} 8. Ne5+ {[%clk 0:02:10]}  Kg8 {[%clk 0:01:43]} 9. Qb3+ {[%clk 0:01:50]}  e6 {[%clk 0:01:41]} 10. Nxg4 {[%clk 0:01:41]}  Qd6 {[%clk 0:01:38]} 11. Nb5 {[%clk 0:01:38]}  Qe7 {[%clk 0:01:27]} 12. Ne5 {[%clk 0:01:29]}  Na6 {[%clk 0:01:17]} 13. O-O {[%clk 0:01:20]}  g6 {[%clk 0:01:10]} 14. d4 {[%clk 0:01:06]}  Bg7 {[%clk 0:01:08]} 15. Bg5 {[%clk 0:01:05]}  h6 {[%clk 0:00:58]} 16. Nxg6 {[%clk 0:01:01]}  Qf7 {[%clk 0:00:52]} 17. Nxh8 {[%clk 0:00:57]}  Kxh8 {[%clk 0:00:53]} 18. Nd6 {[%clk 0:00:56]}  Qe7 {[%clk 0:00:47]} 19. Bxf6 {[%clk 0:00:47]}  Qxd6 {[%clk 0:00:46]} 20. Bxg7+ {[%clk 0:00:45]}  Kxg7 {[%clk 0:00:46]} 21. Qxb7+ {[%clk 0:00:44]}  Nc7 {[%clk 0:00:43]} 22. dxc5 {[%clk 0:00:44]}  Qxc5 {[%clk 0:00:38]} 23. Rad1 {[%clk 0:00:44]}  Rf8 {[%clk 0:00:36]} 24. Rd7+ {[%clk 0:00:42]}  Rf7 {[%clk 0:00:36]} 25. Rxf7+ {[%clk 0:00:38]}  Kxf7 {[%clk 0:00:37]} 26. Qf3+ {[%clk 0:00:38]}  Kg7 {[%clk 0:00:36]} 27. b4 {[%clk 0:00:34]}  Qd6 {[%clk 0:00:27]} 28. Qg3+ {[%clk 0:00:34]}  Qxg3 {[%clk 0:00:20]} 29. hxg3 {[%clk 0:00:35]}  Nd5 {[%clk 0:00:20]} 30. Rc1 {[%clk 0:00:33]}  a5 {[%clk 0:00:19]} 31. bxa5 {[%clk 0:00:31]}  Kf6 {[%clk 0:00:20]} 32. c4 {[%clk 0:00:30]}  Nc7 {[%clk 0:00:20]} 33. Rb1 {[%clk 0:00:29]}  Ke7 {[%clk 0:00:21]} 34. Rb7 {[%clk 0:00:29]}  Kd6 {[%clk 0:00:21]} 35. Rxc7 {[%clk 0:00:26]}  Kxc7 {[%clk 0:00:21]} 36. c5 {[%clk 0:00:27]}  Kc6 {[%clk 0:00:16]} 37. a6 {[%clk 0:00:27]} 1-0